Cogmind - Beta 16 @@@ ROGUE MODE // 2025.11.14 @ 23:37:40 Player: Lobster Glut Result: Destroyed by S-27 Virus with Autogun Performance ------------- Evolutions (3) 1500 Regions Visited (7) 1400 Robots Destroyed (24) 120 Value Destroyed (690) 690 Prototype IDs (23) 460 Alien Tech Used (0) 0 Bonus (487) 487 TOTAL SCORE: 4657 Bonus ------- Follower Combat Kills 187 Aligned with FarCom 300 Cogmind --------- Core Integrity 0/700 Matter 300/300 Energy 100/100 System Corruption 4% Temperature Cool (0) Movement Core (50) Location -7/Lower Caves Parts ------- > --- POWER (2) -------- (None) > --- PROPULSION (3) --- (None) > --- UTILITY (4) ------ (None) > --- WEAPON (4) ------- (None) > --- INVENTORY (5) ---- Superbattery (1500) Medium Matter Pod (100) Visual Processing Unit Shock Absorption System Peak State ------------ > --- POWER ------------ (None) > --- PROPULSION ------- Light Treads Light Treads Medium Treads > --- UTILITY ---------- Scrap Suit Small Storage Unit Superbattery > --- WEAPON ----------- Shock Rifle Particle Gun Light Assault Rifle Light Assault Rifle > --- INVENTORY -------- Titanium Leg Medium Matter Pod Visual Processing Unit Shock Absorption System Assault Rifle [Rating: 33] Favorites ----------- Power Light Ion Engine Engine Light Ion Engine Propulsion Aluminum Leg Treads Light Treads Leg Aluminum Leg Wheel Wheel Flight Unit Flight Unit Utility Small Storage Unit Device Sensor Array Storage Small Storage Unit Weapon Medium Laser Energy Gun Medium Laser Ballistic Gun Light Assault Rifle Launcher Rocket Launcher Build | -11 -10 -10 -10 -9 -8 -7 -7 ------- Run | Yrd Mat Min Exi Min Mat Fac Low Slots Evolved 6 | . . . . . 4 2 . Power 1 | . . . . . 1 . . Propulsion 1 | . . . . . 1 . . Utility 2 | . . . . . 1 1 . Weapon 2 | . . . . . 1 1 . Parts Attached 29 | 6 1 . 2 9 6 5 . Power 4 | 1 . . 1 2 . . . Engine 4 | 1 . . 1 2 . . . Core . | . . . . . . . . Reactor . | . . . . . . . . Propulsion 11 | 2 . . 1 3 3 2 . Treads 3 | . . . . . 2 1 . Leg 3 | . . . 1 1 . 1 . Wheel 2 | 2 . . . . . . . Hover . | . . . . . . . . Flight 3 | . . . . 2 1 . . Utility 5 | 1 1 . . 1 1 1 . Device 2 | . 1 . . . 1 . . Storage 3 | 1 . . . 1 . 1 . Processor . | . . . . . . . . Hackware . | . . . . . . . . Protection . | . . . . . . . . Artifact . | . . . . . . . . Weapon 9 | 2 . . . 3 2 2 . Energy Gun 4 | 2 . . . . . 2 . Energy Cannon . | . . . . . . . . Ballistic Gun 4 | . . . . 3 1 . . Ballistic Cannon . | . . . . . . . . Launcher 1 | . . . . . 1 . . Special Weapon . | . . . . . . . . Impact Weapon . | . . . . . . . . Slashing Weapon . | . . . . . . . . Piercing Weapon . | . . . . . . . . Special Melee Weapon . | . . . . . . . . Unidentified Prototypes . | . . . . . . . . Parts Lost 23 | . . 2 . 7 2 10 2 Power 3 | . . . . 2 1 . . Propulsion 8 | . . 1 . 2 1 3 1 Utility 3 | . . . . 1 . 1 1 Weapon 9 | . . 1 . 2 . 6 . Highest Loss Streak 10 | . . 2 . 3 1 10 2 To Critical Strikes . | . . . . . . . . Average Backups 6 | 2 5 7 8 6 6 5 3 Power 1 | . 1 2 2 1 . . . Propulsion . | . 1 1 . . . . . Utility 3 | . . 2 3 4 4 3 3 Weapon 1 | 1 1 2 2 . 2 1 . Tool/Special . | . . . . . . . . Unused Backups 2 | . . . . . . . 2 Power . | . . . . . . . . Propulsion . | . . . . . . . . Utility 2 | . . . . . . . 2 Weapon . | . . . . . . . . Tool/Special . | . . . . . . . . Average Slot Usage (%) 71 | . 94 83 71 83 59 46 9 Engine 10 | . 14 14 14 13 2 . . Treads 2 | . . . . . 11 10 . Leg 10 | . . . 11 20 . 2 2 Wheel 3 | . 28 20 2 . . . . Flight 1 | . . . . 1 7 . . Device 8 | . 8 14 14 6 8 4 . Storage 14 | . 14 14 14 16 9 15 6 Energy Gun 7 | . 28 20 14 . . 1 . Ballistic Gun 9 | . . . . 23 14 8 . Launcher 1 | . . . . . 6 2 . Peak Build Rating 33 | 6 7 7 7 10 19 33 14 Average Rating 10 | 3 6 6 6 8 16 22 3 On Entrance 7 | . 6 7 6 7 6 17 14 Avg Prop Armor Cover (%) . | . . . . . . . . Naked Turns 31 | . . . . . . . 31 Heaviest Build 20 | 11 12 12 11 15 15 20 9 Greatest Support 68 | 20 20 20 10 20 40 68 17 Greatest Overweight (x) 4 | . . 1 1 4 1 2 2 Average Overweight (x) . | . . . 1 . . . . Largest Inventory Capacity 8 | 8 8 8 8 8 8 8 8 Average Capacity 7 | 6 8 8 8 8 8 8 5 Most Carried 8 | 5 7 8 8 8 8 8 4 Average Carried 6 | 2 5 7 7 6 6 4 3 Final Capacity 8 | 8 8 8 8 8 8 8 5 Final Carried 8 | 3 7 8 8 8 8 3 4 Scrap Suit Usage (%) 20 | . . . . . 99 60 . Parts Cannibalized 3 | . . . . . 3 . . Class Distribution -------------------- 72% | Mutant 25% | Skirmisher Dominant Class ---------------- Mutant | -10/Materials Mutant | -10/Mines Mutant | -10/Exiles Mutant | -9/Mines Skirmisher | -8/Materials Mutant | -7/Factory Mutant | -7/Lower Caves Resources | -11 -10 -10 -10 -9 -8 -7 -7 ----------- Run | Yrd Mat Min Exi Min Mat Fac Low Matter Collected 836 | 251 19 63 . 251 152 88 12 Remotely . | . . . . . . . . Salvage Created 720 | . 105 10 . 330 100 145 30 Parts 51 | . 11 . . 22 5 10 3 Haulers Intercepted . | . . . . . . . . Recyclers Shooed 2 | . 1 . . 1 . . . Parts Field Recycled . | . . . . . . . . Retrieved Matter . | . . . . . . . . Parts Self-Destructed . | . . . . . . . . Prevented . | . . . . . . . . Parts Restored . | . . . . . . . . Kills | -11 -10 -10 -10 -9 -8 -7 -7 ------- Run | Yrd Mat Min Exi Min Mat Fac Low Combat Hostiles Destroyed 24 | . 4 1 . 11 4 3 1 Melee 1 | . . . . . . . 1 Guns 21 | . 4 1 . 11 2 3 . AOE 2 | . . . . . 2 . . Classes Destroyed 7 | . 3 1 . 1 1 1 . Watcher 1 | . 1 . . . . . . Swarmer 12 | . 3 . . 6 2 . 1 Grunt 7 | . 1 . . 4 1 1 . Duelist 1 | . . . . 1 . . . Hunter 2 | . . . . . 1 1 . Programmer 1 | . . . . . . 1 . Assembled 1 | . . 1 . . . . . Best Kill Streak 3 | . 3 1 . 3 1 2 1 Combat Bots Only 3 | . 3 1 . 3 1 2 1 Max Kills in Single Turn 1 | . 1 1 . 1 1 1 1 Gunslinging . | . . . . . . . . Exploded 1 | . . . . . 1 . . Melee 1 | . . . . . . . 1 Uniques/NPCs Destroyed . | . . . . . . . . Combat | -11 -10 -10 -10 -9 -8 -7 -7 -------- Run | Yrd Mat Min Exi Min Mat Fac Low Hostile Shots Fired 339 | . 12 4 . 78 38 157 50 Missed 90 | . 4 . . 15 12 41 18 Hits 249 | . 8 4 . 63 26 116 32 Melee 5 | . . . . 5 . . . Projectile 244 | . 8 4 . 58 26 116 32 AOE 4 | . . 4 . . . . . Critical Strikes 3 | . . . . 2 1 . . Damage Taken 3416 | . 82 192 . 769 324 1565 484 Core 997 | . 18 23 . 180 76 310 390 Absorbed by Shields . | . . . . . . . . Regen/Repaired (Parts) 25 | . . . . . 25 . . Core Remaining (%) 65 | 100 . . . 11 86 . . Volleys Fired 113 | . 12 8 . 44 21 28 . Largest 4 | . 2 2 . 2 2 4 . Hottest 155 | . 90 90 . 70 40 155 . Shots Fired 193 | . 24 15 . 59 38 57 . Gun 186 | . 24 15 . 59 34 54 . Cannon . | . . . . . . . . Launcher 7 | . . . . . 4 3 . Special . | . . . . . . . . Kinetic 125 | . . . . 58 34 33 . Thermal 53 | . 24 15 . 1 . 13 . Explosive 7 | . . . . . 4 3 . Electromagnetic 8 | . . . . . . 8 . Robot Hit Streak 8 | . 5 3 . 8 7 7 . Robot Miss Streak 7 | . 3 4 . 5 4 7 . Penetration Max . | . . . . . . . . Secondary Targets 1 | . . 1 . . . . . Max Gunslinging Chain 1 | . . 1 . . . . . Shots Hit Robots 112 | . 13 8 . 38 18 35 . Core Hits 55 | . 9 3 . 20 10 12 1 Critical Kills . | . . . . . . . . Critical Parts Destroyed . | . . . . . . . . Critical Strikes . | . . . . . . . . Melee Attacks . | . . . . . . . . Impact . | . . . . . . . . Slashing . | . . . . . . . . Piercing . | . . . . . . . . Sneak Attacks . | . . . . . . . . Combat Hostiles . | . . . . . . . . Follow-up Attacks . | . . . . . . . . Damage Inflicted 1569 | . 162 96 . 437 325 537 12 Guns 1243 | . 162 96 . 437 147 401 . Cannons . | . . . . . . . . Explosions 314 | . . . . . 178 136 . Melee . | . . . . . . . . Ramming 12 | . . . . . . . 12 Kinetic 764 | . . . . 437 147 180 . Thermal 432 | . 162 96 . . . 174 . Explosive 314 | . . . . . 178 136 . Electromagnetic 47 | . . . . . . 47 . Impact . | . . . . . . . . Slashing . | . . . . . . . . Piercing . | . . . . . . . . Highest Corruption 4 | . . . . . . 4 4 Average Corruption 3 | . . . . . . 3 4 Corruption Purged . | . . . . . . . . Corruption Blocked . | . . . . . . . . Effects 5 | . . . . . . 5 . Heat Flow Errors 2 | . . . . . . 2 . Energy Discharges 2 | . . . . . . 2 . Parts Rejected 1 | . . . . . . 1 . Overload Shots . | . . . . . . . . Overflow Damage 14 | . . . . . . 14 . Projectiles . | . . . . . . . . Explosions 14 | . . . . . . 14 . Melee . | . . . . . . . . Knockbacks . | . . . . . . . . Impact . | . . . . . . . . Kinetic . | . . . . . . . . Secondary . | . . . . . . . . Self-Inflicted Damage 101 | . . . . . 66 30 5 Shots 3 | . . . . . 2 1 . Rammed 4 | . . . . . . . 4 Targets Rammed 4 | . . . . . . . 4 Kicked . | . . . . . . . . Crushed . | . . . . . . . . Highest Temperature 237 | . 137 190 . 18 13 237 . Average Temperature 69 | . 48 86 . 6 13 99 . Received Heat Transfer 614 | . 27 80 . 210 63 234 . Siege Activations . | . . . . . . . . Martial Activations . | . . . . . . . . Shielding Activations . | . . . . . . . . Robots Disrupted . | . . . . . . . . Combat Hostiles . | . . . . . . . . Robots Corrupted . | . . . . . . . . Combat Hostiles . | . . . . . . . . Parts Fried . | . . . . . . . . Impact Corruptions . | . . . . . . . . Robots Melted . | . . . . . . . . Combat Hostiles . | . . . . . . . . Parts Melted 1 | . . . . . . 1 . Heat Transferred 1040 | . 398 272 . . . 370 . Parts Sabotaged . | . . . . . . . . Parts Stolen . | . . . . . . . . Parts Stripped . | . . . . . . . . Power Chain Reactions . | . . . . . . . . Alert | -11 -10 -10 -10 -9 -8 -7 -7 ------- Run | Yrd Mat Min Exi Min Mat Fac Low Maximum Alert Level 1 | . . . . . 1 . . Low Security (%) 97 | 100 100 100 . 100 83 100 . Level 1 2 | . . . . . 16 . . Level 2 . | . . . . . . . . Level 3 . | . . . . . . . . Level 4 . | . . . . . . . . Level 5 . | . . . . . . . . High Security . | . . . . . . . . Max Security . | . . . . . . . . Peak Influence 222 | . 60 9 . 105 222 99 . Initial 99 | . . 9 . . 31 99 . Average 41 | . 22 1 . 18 130 35 . Influence Increases 1003 | . 128 . . 275 418 147 35 Destroy 0b10 Robot/C 600 | . 80 . . 220 220 60 20 Destroy 0b10 Robot/NC 5 | . 5 . . . . . . Destroy Leader 152 | . 22 . . 40 60 30 . Allied During Kill 27 | . . . . . 27 . . Successful Hack 10 | . 6 . . . 4 . . Disable Machine 45 | . . . . . 30 15 . Destroy Structure 44 | . . . . . 32 12 . Lose Combat Pursuer 120 | . 15 . . 15 45 30 15 Influence Decreases 978 | . 103 25 . 194 280 346 30 Entered New Map 194 | . . 16 . . 50 120 8 Time Decay 592 | . 103 9 . 164 170 136 10 Lost Part 152 | . . . . 30 20 90 12 Lost Ally 40 | . . . . . 40 . . Squads Dispatched 5 | . 1 . . . 2 2 . Investigation 2 | . . . . . 2 . . Extermination 1 | . . . . . . 1 . Reinforcement 2 | . 1 . . . . 1 . Assault . | . . . . . . . . Garrison . | . . . . . . . . Intercept . | . . . . . . . . Searches Triggered . | . . . . . . . . Construction Impeded 1 | . . . . . . 1 . Haulers Reinforced . | . . . . . . . . Active Scanning Responses . | . . . . . . . . Cargo Convoy Interrupts . | . . . . . . . . Stealth | -11 -10 -10 -10 -9 -8 -7 -7 --------- Run | Yrd Mat Min Exi Min Mat Fac Low Distress Signals 1 | . 1 . . . . . . Communications Jammed . | . . . . . . . . Distress Signals . | . . . . . . . . Times Spotted 49 | . 9 3 . 13 11 8 5 Peak Tracking Total 5 | . 3 2 . 3 5 4 4 Tactical Retreats 5 | . 1 . . 1 1 1 1 Traps | -11 -10 -10 -10 -9 -8 -7 -7 ------- Run | Yrd Mat Min Exi Min Mat Fac Low Traps Triggered 1 | . . . . . 1 . . Indirectly . | . . . . . . . . Trap Hack Attempts . | . . . . . . . . Triggered . | . . . . . . . . Disarmed . | . . . . . . . . Reprogrammed . | . . . . . . . . Reused . | . . . . . . . . Traps Extracted . | . . . . . . . . Installed . | . . . . . . . . Triggered . | . . . . . . . . Machines | -11 -10 -10 -10 -9 -8 -7 -7 ---------- Run | Yrd Mat Min Exi Min Mat Fac Low Machines Disabled 3 | . . . . . 2 1 . Max in Single Turn 1 | . . . . . 1 1 . Machines Repaired . | . . . . . . . . Machines Dismantled . | . . . . . . . . Machines Sabotaged . | . . . . . . . . Overloaded Fab Kills . | . . . . . . . . Hacking | -11 -10 -10 -10 -9 -8 -7 -7 --------- Run | Yrd Mat Min Exi Min Mat Fac Low Machines Accessed 8 | . 2 . 2 . 4 . . Terminals 6 | . 2 . . . 4 . . Fabricators . | . . . . . . . . Repair Stations . | . . . . . . . . Recycling Units . | . . . . . . . . Scanalyzers . | . . . . . . . . Garrison Access . | . . . . . . . . Total Hacks 23 | . 7 . 5 . 11 . . Successful 12 | . 4 . 5 . 3 . . Failed 11 | . 3 . . . 8 . . Catastrophic 3 | . . . . . 3 . . Database Lockouts . | . . . . . . . . Manual 1 | . . . 1 . . . . Terminals 18 | . 7 . . . 11 . . Fabricators . | . . . . . . . . Repair Stations . | . . . . . . . . Recycling Units . | . . . . . . . . Scanalyzers . | . . . . . . . . Garrison Access . | . . . . . . . . Terminal Hacks 12 | . 4 . 5 . 3 . . Record 10 | . 3 . 4 . 3 . . Emergency Access Points 1 | . 1 . . . . . . Proto ID Catalog 1 | . . . 1 . . . . Fabricator Hacks . | . . . . . . . . Repair Station Hacks . | . . . . . . . . Recycling Unit Hacks . | . . . . . . . . Scanalyzer . | . . . . . . . . Garrison Access Hacks . | . . . . . . . . Unauthorized Hacks . | . . . . . . . . Terminals . | . . . . . . . . Fabricators . | . . . . . . . . Repair Stations . | . . . . . . . . Recycling Units . | . . . . . . . . Scanalyzers . | . . . . . . . . Garrison Access . | . . . . . . . . Data Cores Recovered . | . . . . . . . . Used . | . . . . . . . . Hacking Detections 6 | . 2 . . . 4 . . Full Trace Events 2 | . . . . . 2 . . Feedback Events . | . . . . . . . . Feedback Blocked . | . . . . . . . . Robot Schematics Acquired . | . . . . . . . . Robots Built . | . . . . . . . . Authchips . | . . . . . . . . Time . | . . . . . . . . Total Robot Build Rating . | . . . . . . . . Part Schematics Acquired . | . . . . . . . . Parts Built . | . . . . . . . . Authchips . | . . . . . . . . Time . | . . . . . . . . Total Part Build Rating . | . . . . . . . . Part Studies Acquired . | . . . . . . . . Parts Repaired . | . . . . . . . . Time . | . . . . . . . . Parts Recycled . | . . . . . . . . Recycled Matter . | . . . . . . . . Retrieved Matter . | . . . . . . . . Retrieved Components . | . . . . . . . . Parts Scanalyzed . | . . . . . . . . Part Schematics Acquired . | . . . . . . . . Parts Damaged . | . . . . . . . . Bothacking | -11 -10 -10 -10 -9 -8 -7 -7 ------------ Run | Yrd Mat Min Exi Min Mat Fac Low Used RIF Installer . | . . . . . . . . Robots Hacked . | . . . . . . . . Non-combat . | . . . . . . . . Combat . | . . . . . . . . Robot Hacks Applied . | . . . . . . . . Relay Couplers Released . | . . . . . . . . Fabnet Peak Effective % . | . . . . . . . . Robots Rewired . | . . . . . . . . Allies Hacked . | . . . . . . . . Hacks Repelled . | . . . . . . . . Allies | -11 -10 -10 -10 -9 -8 -7 -7 -------- Run | Yrd Mat Min Exi Min Mat Fac Low Total Allies 3 | . . . . 3 . . . Largest Group 3 | . . . . 3 3 . . Highest-Rated Group 40 | . . . . 40 40 . . Highest-Rated Ally 16 | . . . . 16 16 . . Total Orders . | . . . . . . . . Ally Attacks 46 | . . . . . 46 . . Total Damage 486 | . . . . . 486 . . Kills 7 | . . . . . 7 . . Allies Corrupted . | . . . . . . . . Allies Melted . | . . . . . . . . Intel | -11 -10 -10 -10 -9 -8 -7 -7 ------- Run | Yrd Mat Min Exi Min Mat Fac Low Active Infowar (turns) 1469 | . 164 88 847 370 . . . Sensors 1469 | . 164 88 847 370 . . . Robot Analysis Total . | . . . . . . . . Derelict Logs Recovered 2 | . . . . 1 . . 1 Drone Launches . | . . . . . . . . Drone Recoveries . | . . . . . . . . Exploration | -11 -10 -10 -10 -9 -8 -7 -7 ------------- Run | Yrd Mat Min Exi Min Mat Fac Low Turns Passed 2904 | 51 257 88 847 868 356 399 38 Spaces Moved 2024 | 57 221 68 485 630 285 220 58 Core 118 | 30 . . . 29 . 4 55 Treads 250 | . . . . . 140 110 . Legs 951 | . . . 361 481 . 106 3 Wheels 440 | 27 221 68 124 . . . . Hover . | . . . . . . . . Flight 265 | . . . . 120 145 . . Fastest Speed 32 | 50 80 80 95 37 32 130 50 Average Speed 119 | 64 80 90 165 112 100 145 56 Slowest Speed 250 | 80 80 95 190 250 160 160 150 Overloaded Moves . | . . . . . . . . Propulsion Burnouts . | . . . . . . . . Robots Hopped 1 | . . . . 1 . . . Potential Cave-ins . | . . . . . . . . Cave-ins Triggered . | . . . . . . . . Exploration Rate (%) 36 | 4 41 25 79 98 22 9 12 Regions Visited 7 Branch Regions 4 Pre-discovered Areas 1 | . . . . 1 . . . Known Exits Taken . | . . . . . . . . Unknown Exits Taken 7 | 1 1 1 1 1 1 1 . Scrap Searched 1 | . . . . 1 . . . Spaces Dug . | . . . . . . . . Terrain Destroyed 49 | . . . . . 37 12 . Melee . | . . . . . . . . Projectile . | . . . . . . . . AOE 49 | . . . . . 37 12 . Terrain Rammed . | . . . . . . . . Walls Destroyed . | . . . . . . . . Machines Disabled . | . . . . . . . . Actions | -11 -10 -10 -10 -9 -8 -7 -7 --------- Run | Yrd Mat Min Exi Min Mat Fac Low Total 2335 | 71 276 79 529 737 324 256 63 Wait 83 | . 38 . . 43 . 2 . Move 2015 | 56 220 67 484 627 284 219 58 Hop 1 | . . . . 1 . . . Pick Up 32 | 9 5 1 1 8 7 1 . Fast Attach . | . . . . . . . . Attach 33 | 6 1 . 1 11 8 6 . Detach 5 | . . . . 2 2 . 1 Swap 1 | . . . 1 . . . . Drop 4 | . . . 1 1 2 . . Fire 113 | . 12 8 . 44 21 28 . Melee . | . . . . . . . . Ram 4 | . . . . . . . 4 Kick . | . . . . . . . . Crush . | . . . . . . . . Escape Stasis . | . . . . . . . . Rewire 44 | . . 3 41 . . . . Trap . | . . . . . . . . Miscellaneous . | . . . . . . . . Route ------- -11/Scrapyard -10/Materials -10/Mines -10/Exiles -9/Mines (discovered 2 exits: *Mat x2) -8/Materials -7/Factory -7/Lower Caves (discovered 1 exit: Low) History --------- Turn | Location | Event 3 | -11/Scrapyard | Discovered new exit (range 16) 52 | -11/Scrapyard | Entered Materials 166 | -10/Materials | Discovered new exit (range 14) 309 | -10/Materials | Entered Mines 310 | -10/Mines | Assembled infested the area 318 | -10/Mines | Build established: Mutant 341 | -10/Mines | Met 8R-AWN 394 | -10/Mines | Discovered new exit (range 5) 397 | -10/Mines | Entered Exiles 420 | -10/Exiles | Welcomed by 8R-AWN 437 | -10/Exiles | Met EX-HEX 467 | -10/Exiles | Met EX-BIN 484 | -10/Exiles | Aligned with FarCom system 485 | -10/Exiles | Given EX-Vault access code 510 | -10/Exiles | Opened EX-Vault 518 | -10/Exiles | Found Superbattery 574 | -10/Exiles | Warned to stay clear of 0b10 Research branches 626 | -10/Exiles | Met EX-DEC 691 | -10/Exiles | Visited The Gauntlet 904 | -10/Exiles | Learned about 8R-AWN's background 1227 | -10/Exiles | Discovered new exit (range 11) 1244 | -10/Exiles | Left Exiles lab with Superbattery 1244 | -10/Exiles | Entered Mines 1245 | -9/Mines | Met a Derelict bent on vengeance 1328 | -9/Mines | Found a damaged Exp. Sensor Array with a note attached 1581 | -9/Mines | Build established: Skirmisher 1896 | -9/Mines | Found a Scrap Suit stashed away for nefarious purposes 1904 | -9/Mines | Found Scrap Suit 1924 | -9/Mines | Build established: Mutant 1933 | -9/Mines | Core integrity fell below 50% 1959 | -9/Mines | Lost 3 parts (1p2n) 2022 | -9/Mines | Core integrity fell below 20% 2085 | -9/Mines | Discovered new exit (range 7) 2085 | -9/Mines | Discovered new exit (range 12) 2089 | -9/Mines | Assisted by bots powering up and referring to "LRC-V3" 2112 | -9/Mines | Entered Materials 2112 | -8/Materials | Accompanied by 3 allies 2112 | -8/Materials | Evolved 4 slots: Power x1, Propulsion x1, Utility x1, Weapon x1 2410 | -8/Materials | Discovered new exit (range 11) 2468 | -8/Materials | Entered Factory 2468 | -7/Factory | Evolved 2 slots: Utility x1, Weapon x1 2527 | -7/Factory | Build established: Skirmisher 2754 | -7/Factory | Lost 10 parts (3n1u6w) 2854 | -7/Factory | Discovered new exit (range 10) 2867 | -7/Factory | Entered Lower Caves 2873 | -7/Lower Caves | Identified exit to Lower Caves 2874 | -7/Lower Caves | Core integrity fell below 50% 2901 | -7/Lower Caves | Core integrity fell below 20% 2905 | -7/Lower Caves | Destroyed by S-27 Virus with Autogun Last Messages --------------- 02770_ Slug penetrates Wall. 02773_ ALERT: Potential suspicious activity detected, Programmers report to Factory Zone 2E. 02814_ System corrupted: Energy discharge (-294). 02823_ U-05 Engineer works on Subcomponent Replicator. 02854_ EXIT=FOUND 02856_ U-05 Engineer works on Subcomponent Replicator. 02859_ System corrupted: Heat flow error (+136). 02862_ U-05 Engineer works on Subcomponent Replicator. 02864_ Slug penetrates Wall. 02867_ U-05 Engineer completes Subcomponent Replicator. LOCATION=UNKNOWN GOAL=ESCAPE 02871_ Titanium Leg destroyed. 02872_ Sml. Storage Unit destroyed. 02873_ Acquired derelict log, extracted data. Loading 1 Lower Caves exit... 02900_ Slammed into S-27 Virus. 02903_ S-27 Virus destroyed. 02904_ Acquired 12 matter. Map ----- +----------------------------------------------------+ | ?????????????????????????????????????????????????? | | ?????????????????????????????????????????????????? | | ?????????????????????????????????????????????????? | | ?????????????????????????????????????????????????? | | ?????????????????????????????????????????????????? | | ?????????????????????????????????????????????????? | | ?????????????????????????????????????????????????? | | ?????????????????????????????????????????????????? | | ?????????????????????????????????????????????????? | | ????????????????????????????????????? ##?????????? | | ??????????????????????????????????? ##???????? | | ??????????????????????????????????? ##????### | | ???????????????????????????????????? #???## | | ??????????????????#####????????????? #???# | | ?????????????????## ##????????????? #???# | | ?????????????????# ##?????####??? #???# | | ?????????????????### #????## ##??? #??## | | ???????????????????## #?#### ##??# ??## | | ????????????????????## ### #??# #?## | | ?????????????????????## #??# #?# | | ??????????????????????## #### ### | | ??????????????????????## ## ## | | ?????????????????????## ### | | ????????????????????## ####?# | | ???????????????????## ##??# #### | | ???????????????????# @ #?# ##??## #### | | ???????????????????## =##?## ##????# ##??# | | ????????????????????## s%###?####?????# ##???# | | ?????????????????????# ss ####??????# ##????## | | ?????????????????????# #??????#####??????? | | ????????????????????# #????????????????? | | ???????????????????# #????????????????? | | ???????????????????# ## #????????????????? | | ???????????????????####?#### ##????????????????? | | ????????????????????????????####?????????????????? | | ?????????????????????????????????????????????????? | | ?????????????????????????????????????????????????? | | ?????????????????????????????????????????????????? | | ?????????????????????????????????????????????????? | | ?????????????????????????????????????????????????? | | ?????????????????????????????????????????????????? | | ?????????????????????????????????????????????????? | | ?????????????????????????????????????????????????? | | ?????????????????????????????????????????????????? | | ?????????????????????????????????????????????????? | | ?????????????????????????????????????????????????? | | ?????????????????????????????????????????????????? | | ?????????????????????????????????????????????????? | | ?????????????????????????????????????????????????? | | ?????????????????????????????????????????????????? | +----------------------------------------------------+ Best States ------------- Heat Dissipation 34 Energy Generation 10 Energy Capacity 1600 Matter Stores 400 Matter Capacity 400 Sight Range 16 Robot Scan Range 14 Terrain Scan Density 10 Evasion (%) 63 Recoil Reduction 3 Item Schematics ----------------- None Robot Schematics ------------------ None Fabricated ------------ Nothing Repaired ---------- Nothing Studied --------- None Alien Tech Used ----------------- None Achievements -------------- I Survived The Infestation Let's See Who's Tougher Challenges ------------ None Game ------ Seed SmallProjectileNeutralizer Manual? 0 Play Time 00:24:14 Cumulative 18.4 hours Start 2025.11.14 @ 23:12:39 End 2025.11.14 @ 23:37:40 Sessions 1 Manual Loads 0 Difficulty Rogue Special Mode None Game No. 20 Rogue 16 Adventurer 4 Explorer 0 Win Type - Total 0 Types 0/0/0/0/0/0/0/0/0/0 Lore% 11 Gallery% 27 Achievement% 15 Wizard Run 0 Options --------- Layout 0 ASCII 0 Keyboard 0 Movement Numpad Keybinds 0 Fullscreen 1 Font 24/Terminus Map View 76x50 Zoom Use 0% Tactical HUD 1 Map Filters NONE Filters NONE Steam 1 RUN: 4aa85bde-8ab6-4fb6-bb78-4f2c3b9e58d2